bitfinex/quotes_ETHUSD_20230119
["timestamp","ask_amount","ask_price","bid_price","bid_amount"]
[1674160388453,0.066,1556.4,1556.1,15.67158]
[1674160388681,0.255,1556.6,1556.2,14.418518]
[1674160388890,6.67886,1556.7,1556.2,14.484518]
[1674160389117,6.48986,1556.7,1556.4,1.5]
[1674160389277,0.066,1556.7,1556.4,1.5]
[1674160389487,6.78010438,1556.9,1556.5,0.15]
[1674160389714,16.49516197,1556.9,1556.5,0.14797414]
[1674160389983,16.49516197,1556.9,1556.4,6.4909]
[1674160390199,16.49516197,1556.9,1556.4,7.9909]
[1674160391006,16.49516197,1556.9,1556.4,6.4909]
[1674160391219,16.30616197,1556.9,1556.4,6.4909]
[1674160392289,17.50208482,1556.9,1556.4,6.4909]
[1674160392506,17.50208498,1556.9,1556.4,8.70114218]
[1674160392680,17.98147651,1556.9,1556.4,0.066]
[1674160392886,18.50772712,1556.9,1556.3,7.81023]
[1674160393146,3.29174759,1556.8,1556.3,0.066]
[1674160393333,6.42405,1556.7,1556.2,12.91713]
[1674160393695,3.29174759,1556.6,1556.2,0.066]
[1674160393884,16.14124759,1556.5,1556.0,0.08907335]
[1674160394202,16.20724759,1556.5,1556.0,1.58907335]
[1674160394722,16.20724759,1556.5,1556.0,0.08907335]
[1674160395170,16.20724759,1556.5,1556.0,1.58907335]
[1674160395497,16.20724759,1556.5,1556.0,0.08907335]
[1674160395794,12.9155,1556.5,1556.0,0.08907335]
[1674160395965,5.67868002,1556.4,1556.0,0.08907335]
[1674160396181,1.313,1556.2,1556.0,0.08907335]
[1674160396410,24.05570759,1556.1,1556.0,0.08907335]
[1674160396613,24.12170759,1556.1,1556.0,0.08907335]
[1674160397043,23.63970759,1556.1,1556.0,0.08907335]
[1674160397267,7.26532,1556.1,1556.0,0.08907335]
[1674160397582,16.98338759,1556.1,1556.0,0.08907335]
[1674160397751,20.69538759,1556.1,1556.0,0.08907335]
[1674160399439,23.39245618,1556.1,1556.0,0.08907335]
[1674160399979,22.85052115,1556.1,1556.0,0.08907335]
[1674160400167,23.39223358,1556.1,1556.0,0.08907335]
[1674160400641,35.31923358,1556.1,1556.0,0.08907335]
[1674160400833,36.98180303,1556.1,1556.0,0.08907335]
[1674160400999,36.9845223,1556.1,1556.0,0.08907335]
[1674160401250,36.9845223,1556.1,1556.0,3.35e-06]
[1674160401480,19.28268,1555.8,1555.7,0.1363073]
[1674160401662,27.44152759,1555.8,1555.7,0.1363073]
[1674160401877,27.67152759,1555.8,1555.7,0.1363073]
[1674160402570,26.35252759,1555.8,1555.7,0.1363073]
[1674160405080,19.69496759,1555.8,1555.7,0.1363073]
[1674160405296,16.21286759,1555.8,1555.7,0.1363073]
[1674160405470,16.69496759,1555.8,1555.7,0.1363073]
[1674160406388,16.21286759,1555.8,1555.7,0.1363073]
[1674160407075,0.066,1555.8,1555.7,0.1363073]
[1674160407269,0.002,1555.8,1555.7,0.1363073]
[1674160407601,0.066,1555.9,1555.7,0.1363073]
[1674160407812,0.004,1555.9,1555.7,0.1363073]
[1674160407964,0.066,1556.0,1555.7,1.79178575]
[1674160408170,6.49237,1556.1,1555.7,1.79178575]
[1674160408384,9.78411759,1556.1,1555.8,0.17917858]
[1674160408647,0.066,1556.1,1555.8,0.17917858]
[1674160408864,6.49227,1556.2,1555.8,0.17917858]
[1674160409029,9.78401759,1556.2,1555.8,0.17917858]
[1674160410338,0.066,1556.2,1555.8,0.17917858]
[1674160410547,0.066,1556.3,1556.0,1.317]
[1674160410699,6.97336,1556.4,1556.1,0.1317]
[1674160410911,10.26510759,1556.4,1556.1,1.5]
[1674160411512,9.78320759,1556.4,1556.1,1.5]
[1674160411649,9.78320759,1556.4,1555.9,9.30395]
[1674160411858,9.78320759,1556.4,1556.0,0.930395]
[1674160412071,16.20866759,1556.4,1556.0,0.930395]
[1674160412329,16.20866759,1556.4,1555.9,2.811]
[1674160413699,16.20866759,1556.4,1555.8,20.84419858]
[1674160414017,12.85222,1556.2,1555.8,0.066]
[1674160414237,6.42673,1556.0,1555.7,9.8515073]
[1674160414381,6.49273,1556.0,1555.7,1.7023073]
[1674160414695,6.49273,1556.0,1555.7,1.6363073]
[1674160415166,6.49273,1556.0,1555.7,0.1363073]
[1674160415386,3.29174759,1555.9,1555.7,0.1363073]
[1674160415602,9.71918759,1555.9,1555.7,0.1363073]
[1674160415751,16.21262759,1555.9,1555.7,0.1363073]
[1674160415958,3.29174759,1555.8,1555.7,0.1363073]
[1674160416189,16.14686759,1555.8,1555.7,0.1363073]
[1674160416492,16.21286759,1555.8,1555.7,0.1363073]
[1674160417641,17.76186759,1555.8,1555.7,0.1363073]
[1674160417851,20.76186759,1555.8,1555.7,0.1363073]
[1674160418076,19.21286759,1555.8,1555.7,0.1363073]
[1674160418307,19.69496759,1555.8,1555.7,0.1363073]
[1674160420208,19.92496759,1555.8,1555.7,0.1363073]
[1674160421916,16.92496759,1555.8,1555.7,0.1363073]
[1674160422067,16.69496759,1555.8,1555.7,0.1363073]
[1674160422963,16.21286759,1555.8,1555.7,0.1363073]
[1674160425330,16.21286759,1555.8,1555.7,0.9913073]
[1674160425331,12.92112,1555.8,1555.7,0.9913073]
[1674160425698,0.06273537,1555.8,1555.7,0.9913073]
[1674160426010,6.49017537,1555.9,1555.7,1.25058575]
[1674160426751,0.06273537,1555.9,1555.7,0.25927845]
[1674160426940,12.91573537,1556.1,1555.7,1.57827845]
[1674160427154,16.20748296,1556.1,1555.8,1.65782784]
[1674160427330,16.20748296,1556.1,1555.8,0.15782784]
[1674160427331,9.78085296,1556.1,1555.8,0.15782784]
[1674160427998,16.20748296,1556.1,1555.7,0.25927845]
[1674160428216,16.20748296,1556.1,1555.7,1.57827845]
[1674160428392,6.48910537,1556.1,1555.7,1.57827845]
[1674160428710,0.06273537,1556.1,1555.8,9.23552]
[1674160428918,12.91433537,1556.3,1555.9,0.923552]
[1674160430004,12.91433537,1556.3,1555.8,2.808]
[1674160431494,12.91433537,1556.3,1555.8,9.23554]
[1674160431682,12.91433537,1556.3,1555.8,9.30154]
[1674160432475,6.48853537,1556.3,1555.8,15.7291]
[1674160432685,6.48853537,1556.3,1556.0,1.5]
[1674160433155,6.48853537,1556.3,1555.9,1.57291]
[1674160434631,6.48853537,1556.3,1556.0,1.5]
[1674160439530,6.48853537,1556.3,1555.9,10.88498]
[1674160440061,6.48853537,1556.3,1556.0,1.5]
[1674160440501,6.48853537,1556.3,1556.0,2.738498]
[1674160441147,0.06273537,1556.3,1556.0,2.738498]
[1674160441308,6.42511,1556.4,1556.0,2.738498]
[1674160441309,6.48784537,1556.4,1556.0,2.738498]
[1674160441520,0.06273537,1556.4,1556.3,1.319]
[1674160441730,6.48689537,1556.7,1556.3,1.4509]
[1674160442409,0.06273537,1556.7,1556.4,1.5]
[1674160442563,0.16445975,1556.9,1556.6,7.74325]
[1674160442778,0.10172438,1556.9,1556.6,14.2335]
[1674160443049,0.10172438,1556.9,1556.8,1.311]
[1674160443231,0.10172438,1556.9,1556.8,7.73443]
[1674160443451,0.10172438,1556.9,1556.8,11.09217759]
[1674160443619,0.10172438,1556.9,1556.8,20.33460759]
[1674160443620,2.438e-05,1556.9,1556.8,20.33460759]
[1674160443836,0.10172438,1557.1,1556.9,1.5]
[1674160444075,0.10172438,1557.1,1557.0,15.4832]
[1674160444414,0.10172438,1557.1,1557.0,15.5492]
[1674160444620,0.10172438,1557.1,1557.0,18.07557976]
[1674160445189,0.10172438,1557.1,1557.0,10.33397976]
[1674160445460,0.10172438,1557.1,1557.0,0.066]
[1674160445685,0.10172438,1557.1,1556.8,6.48911]
[1674160446259,0.10172438,1557.1,1556.8,0.066]
[1674160446604,0.10172438,1557.1,1556.7,18.65954]
[1674160446806,0.10172438,1557.1,1557.0,1.319]
[1674160446975,0.10172438,1557.1,1557.0,18.76194759]
[1674160447189,0.10172438,1557.1,1557.0,21.82794759]
[1674160449506,0.1015951,1557.2,1557.1,3.68279476]
[1674160449834,0.1015951,1557.2,1557.1,25.68692235]
[1674160450039,0.1015951,1557.2,1557.1,25.75292235]
[1674160450469,6.534e-05,1557.4,1557.2,1.5]
[1674160450661,0.10776372,1557.7,1557.4,19.26261]
[1674160450872,0.10776372,1557.7,1557.6,9.05613]
[1674160451138,0.10776372,1557.7,1557.6,15.41387759]
[1674160452393,0.10776372,1557.7,1557.6,15.41187759]
[1674160452611,0.10776372,1557.7,1557.6,15.41387759]
[1674160452768,0.10776372,1557.7,1557.6,17.59728935]
[1674160454605,0.10776372,1557.7,1557.6,28.04517066]
[1674160454758,0.10776372,1557.7,1557.6,24.24741935]
[1674160455953,0.10776372,1557.7,1557.6,14.53554176]
[1674160456286,0.10776372,1557.7,1557.6,6.79841176]
[1674160456600,0.10776372,1557.7,1557.6,6.56841176]
[1674160456814,0.10776372,1557.7,1557.6,20.51700759]
[1674160457026,0.10776372,1557.7,1557.6,21.82900759]
[1674160457647,0.10776372,1557.7,1557.6,22.05900759]
[1674160458469,0.10776372,1557.7,1557.6,21.82900759]
[1674160459121,0.10776372,1557.7,1557.6,12.11713]
[1674160459285,0.10776372,1557.7,1557.6,0.066]
[1674160459493,0.10776372,1557.7,1557.4,1.311]
[1674160459697,0.10776372,1557.7,1557.4,11.02348759]
[1674160459961,0.10776372,1557.7,1557.4,11.08948759]
[1674160460169,0.10776372,1557.7,1557.5,1.10894876]
[1674160460538,0.10776372,1557.7,1557.5,2.42794876]
[1674160460749,0.10776372,1557.7,1557.6,1.308]
[1674160462232,0.10776372,1557.7,1557.5,7.80551]
[1674160462444,0.10776372,1557.7,1557.5,0.066]
[1674160462654,0.10776372,1557.7,1557.4,1.385]
[1674160462971,3.29174759,1557.6,1557.3,0.066]
[1674160463181,9.71214759,1557.6,1556.9,12.91152]
[1674160463538,0.4816,1557.5,1556.9,14.23052]
[1674160463776,0.4816,1557.5,1557.0,6.03379959]
[1674160463942,0.06273537,1557.6,1557.1,7.74111]
[1674160464106,13.49178909,1557.7,1557.1,7.80711]
[1674160464464,13.49178909,1557.7,1557.1,1.96043696]
[1674160464465,18.28353668,1557.7,1557.1,1.96043696]
[1674160464679,18.28353668,1557.7,1557.0,9.230512]
[1674160464864,16.78353668,1557.7,1557.0,10.730512]
[1674160465269,14.3407,1557.6,1557.0,7.911512]
[1674160465475,14.3407,1557.6,1557.0,0.066]
[1674160465476,3.29174759,1557.5,1557.0,0.066]
[1674160465710,6.42147,1557.3,1556.9,0.066]
[1674160465956,6.48420537,1557.3,1556.7,7.74677]
[1674160466192,0.06273537,1557.3,1556.8,2.819]
[1674160466505,9.96537537,1557.4,1556.9,0.2819]
[1674160467084,6.96537537,1557.4,1556.9,0.2819]
[1674160467426,6.96537537,1557.4,1556.9,8.02388]
[1674160467598,0.54433537,1557.4,1557.0,0.802388]
[1674160467815,0.4816,1557.4,1557.0,0.802388]
[1674160468245,0.4816,1557.4,1557.0,2.302388]
[1674160468490,6.48332537,1557.5,1557.0,3.621388]
[1674160468865,6.48332537,1557.5,1557.1,0.3621388]
[1674160469700,6.48332537,1557.5,1557.0,8.609968]
[1674160469908,6.48332537,1557.5,1557.0,7.290968]
[1674160471802,17.69566296,1557.5,1557.0,0.066]
[1674160472068,17.69566296,1557.5,1556.8,15.29187539]
[1674160472069,5.09234759,1557.4,1556.8,0.15682539]
[1674160472379,5.09234759,1557.4,1556.8,0.09082539]
[1674160472380,14.34328,1557.3,1556.8,0.09082539]
[1674160472595,12.90601537,1557.3,1556.8,0.74886493]
[1674160473407,12.90601537,1557.3,1556.8,0.74557745]
[1674160474515,12.90601537,1557.3,1556.8,2.24557745]
[1674160474727,6.48431537,1557.3,1556.8,9.98798745]
[1674160475036,6.48431537,1557.3,1556.9,0.99879874]
[1674160477519,16.19764296,1557.3,1556.8,0.81157745]
[1674160477712,3.29174759,1557.2,1556.8,0.08753791]
[1674160477921,19.26678,1557.1,1556.8,0.08753791]
[1674160478246,6.48497537,1557.1,1556.8,0.08753791]
[1674160478456,0.06273537,1557.1,1556.8,0.08753791]
[1674160478662,0.06273537,1557.2,1556.8,6.51087791]
[1674160478908,6.90301,1557.3,1556.8,6.57687791]
[1674160478909,12.90572537,1557.3,1556.8,6.57687791]
[1674160479133,12.90572537,1557.3,1556.8,7.8703097]
[1674160479870,12.90572537,1557.3,1556.8,1.4469697]
[1674160479871,16.19747296,1557.3,1556.8,1.4469697]
[1674160480063,16.19747296,1557.3,1556.8,0.08753791]
[1674160480064,6.42227,1557.1,1556.8,0.08753791]
[1674160480240,6.48500537,1557.1,1556.8,0.08753791]
[1674160483156,6.48500537,1557.1,1556.8,1.58753791]
[1674160483518,0.06273537,1557.1,1556.8,1.58753791]
[1674160483734,0.06273537,1557.2,1556.9,1.319]
[1674160483971,0.06273537,1557.3,1557.0,1.319]
[1674160484290,6.42108,1557.4,1557.0,1.319]
[1674160484291,0.06273537,1557.4,1557.1,0.1319]
[1674160484449,6.48329537,1557.5,1557.1,3.42364759]
[1674160484660,6.48329537,1557.5,1557.2,0.34236476]
[1674160484661,0.06273537,1557.5,1557.2,0.34236476]
[1674160484865,6.52781372,1557.7,1557.2,13.18542476]
[1674160484866,6.59054909,1557.7,1557.2,13.18542476]
[1674160485082,6.59054909,1557.7,1557.3,1.31854248]
[1674160485745,13.6830228,1557.7,1557.3,1.31854248]
[1674160485959,15.1830228,1557.7,1557.3,1.31854248]
[1674160486130,13.6830228,1557.7,1557.3,1.31854248]
[1674160486341,17.44065768,1557.7,1557.3,1.31854248]
[1674160486666,1.9816,1557.6,1557.2,0.34236476]
[1674160486862,6.42061,1557.5,1557.1,1.4509]
[1674160487076,6.48334537,1557.5,1557.1,0.1319]
[1674160487707,12.90395537,1557.5,1557.1,0.1319]
[1674160488455,14.40395537,1557.5,1557.1,0.1319]
[1674160488674,12.90395537,1557.5,1557.1,0.1319]
[1674160491284,12.90395537,1557.5,1557.0,3.0]
[1674160492065,13.57637908,1557.5,1557.0,3.0]
[1674160492776,12.90395537,1557.5,1557.0,3.0]
[1674160493118,13.57637908,1557.5,1557.0,3.0]
[1674160493343,12.90395537,1557.5,1557.0,3.68489655]
[1674160493656,13.57637908,1557.5,1557.0,3.68489655]
[1674160494556,17.87376369,1557.5,1557.0,0.68489655]
[1674160494773,18.35536369,1557.5,1557.0,0.68199499]
[1674160495333,18.35536369,1557.5,1556.9,19.1817]
[1674160495334,3.29174759,1557.4,1556.9,17.8627]
[1674160495483,19.26558,1557.2,1556.9,0.066]
[1674160495750,19.26558,1557.2,1556.8,0.08753791]
[1674160495751,19.32831537,1557.2,1556.8,0.08753791]
[1674160496607,22.62006296,1557.2,1556.8,0.08753791]
[1674160497972,23.29248667,1557.2,1556.8,0.08753791]
[1674160500387,6.48459537,1557.2,1556.8,1.40253791]
[1674160500609,6.48459537,1557.2,1556.9,0.14025379]
[1674160500827,6.48073724,1557.2,1556.9,0.14025379]
[1674160501446,6.48073724,1557.2,1556.9,1.45925379]
[1674160502561,0.06273537,1557.2,1557.1,1.319]
[1674160502737,8.58046073,1557.5,1557.1,1.5815]
[1674160502738,7.15595908,1557.5,1557.1,1.5815]
[1674160502949,7.15595908,1557.5,1557.1,0.2625]
[1674160503368,7.62295739,1557.5,1557.1,0.2625]
[1674160503600,7.15595908,1557.5,1557.1,0.2625]
[1674160504027,7.6229493,1557.5,1557.1,0.2625]
[1674160504558,0.06273537,1557.5,1557.1,16.39860759]
[1674160504707,8.26830982,1557.7,1557.3,1.319]
[1674160505336,7.2626728,1557.7,1557.3,1.319]
[1674160505546,7.2626728,1557.7,1557.4,0.1319]
[1674160506701,7.2626728,1557.7,1557.4,1.4509]
[1674160506918,13.6824228,1557.7,1557.4,1.4509]
[1674160508106,13.6824228,1557.7,1557.4,0.1319]
[1674160508300,14.68805982,1557.7,1557.4,0.1319]
[1674160508649,13.6824228,1557.7,1557.4,0.1319]
[1674160509017,14.68805982,1557.7,1557.4,0.1319]
[1674160509646,14.68805982,1557.7,1557.3,1.319]
[1674160509647,0.72817834,1557.6,1557.3,1.319]
[1674160509899,7.14841834,1557.6,1557.3,1.319]
[1674160510115,7.15539908,1557.6,1557.3,1.319]
[1674160510650,6.48297537,1557.6,1557.3,1.319]
[1674160510844,6.48297537,1557.6,1557.4,0.1319]
[1674160511379,0.06273537,1557.6,1557.4,0.1319]
[1674160511554,6.52751372,1557.7,1557.4,0.1319]
[1674160511555,6.59024909,1557.7,1557.4,0.1319]
[1674160512640,0.17049909,1557.7,1557.5,1.319]
[1674160512806,0.10776372,1557.7,1557.6,2.2979]
[1674160513026,0.10776372,1557.7,1557.6,2.166]
[1674160513687,0.10776372,1557.7,1557.6,11.87787759]
[1674160513862,0.10776372,1557.7,1557.6,14.94387759]
[1674160514068,0.10776372,1557.7,1557.6,17.53029235]
[1674160514515,0.10776372,1557.7,1557.6,25.26942235]
[1674160519065,0.10776372,1557.7,1557.6,6.50741476]
[1674160519273,0.10776372,1557.7,1557.6,0.066]
[1674160519491,0.10776372,1557.7,1557.6,0.855]
[1674160520621,0.10776372,1557.7,1557.5,3.0]
[1674160520859,0.10776372,1557.7,1557.5,4.315]
[1674160521542,0.10776372,1557.7,1557.5,4.31263165]
[1674160521763,0.10776372,1557.7,1557.6,0.43126317]
[1674160522748,0.10776372,1557.7,1557.6,8.17039317]
[1674160523176,0.10776372,1557.7,1557.6,8.22639317]
[1674160523480,0.10776372,1557.7,1557.6,8.23639317]
[1674160524526,0.10776372,1557.7,1557.6,11.52814076]
[1674160524906,0.10776372,1557.7,1557.6,17.94827076]
[1674160525861,0.10776372,1557.7,1557.6,19.26727076]
[1674160528755,0.10776372,1557.7,1557.6,19.49727076]
[1674160528898,0.10776372,1557.7,1557.6,22.49727076]
[1674160530081,0.10776372,1557.7,1557.6,22.26727076]
[1674160530691,0.10776372,1557.7,1557.6,20.94827076]
[1674160531100,0.10776372,1557.7,1557.6,26.29612989]
[1674160531310,0.09855656,1557.9,1557.8,19.2579]
[1674160531564,0.10838698,1558.0,1557.8,32.26494759]
[1674160531893,0.10838698,1558.0,1557.9,17.67852759]
[1674160532109,0.10838698,1558.0,1557.9,17.74452759]
[1674160532278,0.10838698,1558.0,1557.9,22.42184035]
[1674160532640,0.10838698,1558.0,1557.9,20.87284035]
[1674160532991,0.10838698,1558.0,1557.9,9.84320276]
[1674160533487,0.10838698,1558.0,1557.9,20.86484035]
[1674160533706,0.1093576,1558.1,1558.0,2.41127439]
[1674160534011,0.1093576,1558.1,1558.0,23.43746602]
[1674160534202,0.1093576,1558.1,1558.0,23.73346602]
[1674160536507,0.1093576,1558.1,1558.0,27.76074293]
[1674160536689,0.1093576,1558.1,1558.0,27.76074508]
[1674160536902,0.1093576,1558.1,1558.0,29.07274508]
[1674160538427,0.1093576,1558.1,1558.0,35.83674508]
[1674160539055,0.1093576,1558.1,1558.0,31.80946602]
[1674160539270,0.1093576,1558.1,1558.0,25.04546602]
[1674160540830,0.1093576,1558.1,1558.0,23.73446602]
[1674160542210,0.1093576,1558.1,1558.0,20.73446602]
[1674160542374,0.1093576,1558.1,1558.0,18.33746602]
[1674160543680,0.1093576,1558.1,1558.0,19.65646602]
[1674160545090,0.1093576,1558.1,1558.0,18.33746602]
[1674160546351,0.1093576,1558.1,1558.0,5.50050602]
[1674160546562,0.1093576,1558.1,1558.0,0.12227439]
[1674160546772,0.1093576,1558.1,1558.0,0.05627439]
[1674160548529,1.6093576,1558.1,1558.0,0.05627439]
[1674160548706,0.1093576,1558.1,1558.0,0.05627439]
[1674160550266,1.6093576,1558.1,1558.0,0.05627439]
[1674160550478,0.1093576,1558.1,1558.0,0.05627439]
[1674160551874,1.6093576,1558.1,1558.0,0.05627439]
[1674160552284,14.4454976,1558.1,1558.0,0.05627439]
[1674160552614,14.50823297,1558.1,1558.0,0.05627439]
[1674160553712,14.50823297,1558.1,1557.4,1.539]
[1674160553713,1.5,1558.0,1557.4,1.539]
[1674160553923,1.63,1557.9,1557.2,1.61321869]
[1674160554179,12.83952,1557.7,1557.2,4.83896628]
[1674160554409,12.90225537,1557.7,1557.2,6.93143091]
[1674160554728,12.90225537,1557.7,1557.2,6.99743091]
[1674160557633,14.40225537,1557.7,1557.2,6.99743091]
[1674160557841,14.40225537,1557.7,1557.2,6.99543091]
[1674160558212,12.90225537,1557.7,1557.2,6.99743091]
[1674160558537,12.90225537,1557.7,1557.3,0.69954309]
[1674160558744,12.90225537,1557.7,1557.2,6.99743091]
[1674160558897,12.90225537,1557.7,1557.2,8.49743091]
[1674160559096,12.90225537,1557.7,1557.2,6.99743091]
[1674160559326,5.24334759,1557.6,1557.2,0.14521869]
[1674160559566,19.26285,1557.4,1557.2,0.07921869]
[1674160559731,19.32558537,1557.4,1557.2,0.07921869]
[1674160559938,19.32358537,1557.4,1557.2,0.07921869]
[1674160560149,19.32558537,1557.4,1557.2,0.07921869]
[1674160561198,20.80558537,1557.4,1557.2,0.07921869]
[1674160561448,12.90463537,1557.4,1557.2,0.07921869]
[1674160563410,6.48368537,1557.4,1557.2,0.07921869]
[1674160564353,0.06273537,1557.4,1557.2,3.37096628]
[1674160564531,6.48314537,1557.6,1557.3,0.33709663]
[1674160564743,3.29174759,1557.5,1557.2,0.07921869]
[1674160564980,29.45714759,1557.4,1557.2,0.07921869]
[1674160565298,29.03828296,1557.4,1557.2,0.07921869]
[1674160565445,25.74653537,1557.4,1557.2,0.07921869]
[1674160565655,27.22453537,1557.4,1557.2,0.07921869]
[1674160568204,0.4816,1557.3,1557.2,0.93421869]
[1674160568414,6.42137,1557.3,1557.2,0.93421869]
[1674160568645,0.06273537,1557.3,1557.2,1.02764056]
[1674160568859,0.06273537,1557.4,1557.2,1.02764056]
[1674160569071,6.48331537,1557.5,1557.2,1.02764056]
[1674160570283,6.48331537,1557.5,1557.3,0.10276406]
[1674160570520,6.48331537,1557.5,1557.2,0.17264056]
[1674160571446,0.06273537,1557.5,1557.2,0.17264056]
[1674160571652,6.48314537,1557.6,1557.2,0.17264056]
[1674160571880,6.48314537,1557.6,1557.3,3.29174759]
[1674160572127,0.06273537,1557.6,1557.4,0.32917476]
[1674160572316,0.06273537,1557.7,1557.4,3.62092235]
[1674160572487,6.48182537,1557.9,1557.5,3.65383982]
[1674160572704,6.48182537,1557.9,1557.5,10.07426982]
[1674160572969,6.48182537,1557.9,1557.5,10.14026982]
[1674160573173,6.48182537,1557.9,1557.6,1.01402698]
[1674160573536,7.98182537,1557.9,1557.6,1.01402698]
[1674160573802,6.48182537,1557.9,1557.6,1.01402698]
[1674160574613,6.48182537,1557.9,1557.6,1.01096207]
[1674160574842,7.98182537,1557.9,1557.6,1.01096207]
[1674160575284,6.48182537,1557.9,1557.6,1.01096207]
[1674160575978,7.98182537,1557.9,1557.6,1.01096207]
[1674160577139,6.48182537,1557.9,1557.6,1.01096207]
[1674160577344,14.38093537,1557.9,1557.5,0.066]
[1674160577552,1.478,1557.8,1557.3,16.12653]
[1674160577764,7.89755,1557.8,1557.4,3.29174759]
[1674160577986,1.5,1557.7,1557.3,16.12653]
[1674160578290,7.88982,1557.7,1557.3,3.35774759]
[1674160578553,7.95255537,1557.7,1557.3,5.74310922]
[1674160578815,7.95255537,1557.7,1557.3,5.80910922]
[1674160579866,7.95255537,1557.7,1557.4,3.29174759]
[1674160580213,0.06273537,1557.7,1557.5,3.62092235]
[1674160580426,0.002,1557.7,1557.5,3.62092235]
[1674160580633,7.94866537,1557.9,1557.5,3.62092235]
[1674160581024,9.44866537,1557.9,1557.5,3.62092235]
[1674160582134,7.94866537,1557.9,1557.5,3.62092235]
[1674160582296,9.39944,1557.8,1557.4,6.48686]
[1674160582658,7.96217537,1557.8,1557.4,3.35774759]
[1674160582868,7.96217537,1557.8,1557.4,5.15691851]
[1674160583021,7.96217537,1557.8,1557.4,5.22291851]
[1674160583231,14.38161537,1557.8,1557.4,1.93117092]
[1674160583489,14.38161537,1557.8,1557.3,0.066]
[1674160583490,2.98,1557.7,1557.3,0.066]
[1674160583803,7.89998,1557.7,1557.3,6.29174759]
[1674160584019,7.96271537,1557.7,1557.3,6.35774759]
[1674160584343,14.38269537,1557.7,1557.3,5.17520863]
[1674160584704,0.06273537,1557.7,1557.4,3.29174759]
[1674160584914,6.41944,1557.8,1557.5,3.62092235]
[1674160584915,0.06273537,1557.8,1557.5,3.62092235]
[1674160585128,6.48166537,1557.9,1557.5,3.62092235]
[1674160585353,6.48166537,1557.9,1557.6,0.36209223]
[1674160585567,7.98166537,1557.9,1557.5,3.62092235]
[1674160585877,6.48166537,1557.9,1557.5,3.62092235]
[1674160586505,7.98166537,1557.9,1557.5,3.29174759]
[1674160586950,9.46166537,1557.9,1557.5,3.29174759]
[1674160587329,7.96166537,1557.9,1557.5,3.29174759]
[1674160591427,6.48166537,1557.9,1557.5,3.29174759]
[1674160591637,6.48166537,1557.9,1557.6,0.32917476]
[1674160592691,0.06273537,1557.9,1557.6,0.32917476]
[1674160592900,13.2501232,1558.0,1557.6,0.32917476]
[1674160593400,0.4127632,1558.0,1557.7,3.29174759]
[1674160593568,0.4007632,1558.0,1557.8,3.85092235]
[1674160593781,0.35002783,1558.0,1557.9,16.12952759]
[1674160594099,0.35002783,1558.0,1557.9,0.921]
[1674160594267,0.35002783,1558.0,1557.9,0.855]
[1674160594474,0.35002783,1558.0,1557.8,6.48492]
[1674160594743,0.35002783,1558.0,1557.8,3.35774759]
[1674160594964,0.35002783,1558.0,1557.8,3.29174759]
[1674160595524,0.35002783,1558.0,1557.7,6.48546]
[1674160595736,0.35002783,1558.0,1557.7,9.77720759]
[1674160596061,0.35002783,1558.0,1557.7,11.54868407]
[1674160599314,0.3472369,1558.0,1557.7,11.54868407]
[1674160601096,6.7657969,1558.0,1557.7,0.066]
[1674160601309,8.32853227,1558.0,1557.6,3.066]
[1674160601530,8.32853227,1558.0,1557.6,3.0]
[1674160601771,6.82853227,1558.0,1557.6,3.0]
[1674160601995,0.40997227,1558.0,1557.7,3.29174759]
[1674160602156,0.40997227,1558.0,1557.8,9.71104759]
[1674160602157,0.3472369,1558.0,1557.8,9.71104759]
[1674160602528,0.3472369,1558.0,1557.8,11.25004759]
[1674160602846,0.3472369,1558.0,1557.9,1.12500476]
[1674160603237,0.3472369,1558.0,1557.8,16.19634759]
[1674160603649,0.3472369,1558.0,1557.8,9.77704759]
[1674160610733,0.3472369,1558.0,1557.8,0.066]
[1674160610876,0.3472369,1558.0,1557.7,0.066]
[1674160611087,0.3472369,1558.0,1557.7,3.29174759]
[1674160611296,0.3472369,1558.0,1557.7,5.21152635]
[1674160611558,0.3472369,1558.0,1557.7,5.27752635]
[1674160611772,0.3472369,1558.0,1557.7,0.066]
[1674160611926,0.3472369,1558.0,1557.6,9.48602]
[1674160612136,0.3472369,1558.0,1557.6,12.77776759]
[1674160613317,0.3472369,1558.0,1557.6,14.25076759]
[1674160613519,0.3472369,1558.0,1557.7,1.42507676]
[1674160615134,1.8472369,1558.0,1557.6,14.25076759]
[1674160615311,0.3472369,1558.0,1557.6,14.25076759]
[1674160615710,0.3472369,1558.0,1557.6,7.95902]
[1674160615916,13.85674061,1558.0,1557.6,0.066]
[1674160616279,13.91947598,1558.0,1557.5,25.1780794]
[1674160616498,13.91947598,1558.0,1557.5,28.46982699]
[1674160616657,15.38547598,1558.0,1557.5,28.46982699]
[1674160616910,16.391113,1558.0,1557.5,28.46982699]
[1674160617111,15.38547598,1558.0,1557.5,28.46982699]
[1674160617321,16.391113,1558.0,1557.5,28.46982699]
[1674160617493,8.59141371,1557.9,1557.5,28.46982699]
[1674160617703,10.13214908,1557.9,1557.5,0.3536194]
[1674160617915,10.13214908,1557.9,1557.5,0.2876194]
[1674160617916,0.67242371,1557.8,1557.5,0.2876194]
[1674160618164,6.41972,1557.7,1557.5,0.2876194]
[1674160618390,6.48245537,1557.7,1557.5,0.2876194]
[1674160618756,15.05459908,1557.7,1557.5,0.2876194]
[1674160619006,14.38217537,1557.7,1557.5,0.2876194]
[1674160619196,12.90217537,1557.7,1557.5,0.2876194]
[1674160619385,6.48245537,1557.7,1557.5,0.2876194]
[1674160619917,12.90217537,1557.7,1557.5,0.2876194]
[1674160620335,12.90217537,1557.7,1557.5,0.28428412]
[1674160620545,0.06273537,1557.7,1557.5,0.28428412]
[1674160620917,0.06273537,1557.8,1557.5,0.28428412]
[1674160621069,12.90104537,1557.9,1557.5,3.57603171]
[1674160621420,6.48185537,1557.9,1557.5,3.57603171]
[1674160622857,7.15427908,1557.9,1557.5,3.57603171]
[1674160623754,15.05340908,1557.9,1557.5,0.28428412]
[1674160624001,6.41972,1557.7,1557.5,0.28428412]
[1674160624114,6.48245537,1557.7,1557.5,0.28428412]
[1674160626491,0.06273537,1557.7,1557.5,0.28428412]
[1674160626701,6.48231537,1557.8,1557.5,0.28428412]
[1674160629108,7.15473908,1557.8,1557.5,0.28428412]
[1674160629325,13.57431908,1557.8,1557.5,0.28428412]
[1674160629495,2.15142371,1557.7,1557.5,0.28428412]
[1674160629712,12.84026,1557.6,1557.5,0.28428412]
[1674160629921,12.90299537,1557.6,1557.5,0.28428412]
[1674160631377,13.28370125,1557.6,1557.5,0.28428412]
[1674160631805,28.28370125,1557.6,1557.5,0.28428412]
[1674160632340,29.76370125,1557.6,1557.5,0.28428412]